fUST/lending_fUST_20240923
["ID","MTS","AMOUNT","RATE_DAILY","PERIOD"]
[338901322,1727041838744,-500.0,0.00021917,2]
[338901323,1727041838755,-500.0,0.00021917,2]
[338901324,1727041838764,-500.0,0.00021917,2]
[338901325,1727041838775,-500.0,0.00021917,2]
[338901326,1727041838786,-500.0,0.00021917,2]
[338901327,1727041838796,-500.0,0.00021917,2]
[338901328,1727041838807,-500.0,0.00021917,2]
[338901329,1727041838820,-500.0,0.00021917,2]
[338901330,1727041838830,-500.0,0.00021917,2]
[338901331,1727041838838,-500.0,0.00021917,2]
[338901332,1727041838847,-500.0,0.00021917,2]
[338901333,1727041838856,-500.0,0.00021917,2]
[338901334,1727041838865,-500.0,0.00021917,2]
[338901335,1727041838875,-500.0,0.00021917,2]
[338901336,1727041838885,-500.0,0.00021917,2]
[338901337,1727041838894,-501.7374812,0.00021917,2]
[338901338,1727041838905,-280.94423336,0.00021917,2]
[338901339,1727041838914,-924.03,0.00021917,2]
[338901340,1727041838924,-500.0,0.00021917,2]
[338901341,1727041838936,-500.0,0.00021917,2]
[338901342,1727041838946,-500.0,0.00021917,2]
[338901343,1727041838955,-500.0,0.00021917,2]
[338901344,1727041838964,-500.0,0.00021917,2]
[338901345,1727041838974,-500.0,0.00021917,2]
[338901346,1727041838983,-500.0,0.00021917,2]
[338901347,1727041838992,-500.0,0.00021917,2]
[338901348,1727041839002,-500.0,0.00021917,2]
[338901349,1727041839011,-500.0,0.00021917,2]
[338901350,1727041839020,-500.0,0.00021917,2]
[338901351,1727041839030,-500.0,0.00021917,2]
[338901352,1727041839039,-500.0,0.00021917,2]
[338901353,1727041839048,-500.0,0.00021917,2]
[338901354,1727041839057,-500.0,0.00021917,2]
[338901355,1727041839068,-500.0,0.00021917,2]
[338901356,1727041839077,-500.0,0.00021917,2]
[338901357,1727041839086,-500.0,0.00021917,2]
[338901358,1727041839095,-399.20709631,0.00021917,2]
[338901359,1727041839104,-500.0,0.00021917,2]
[338901360,1727041839113,-500.0,0.00021917,2]
[338901361,1727041839123,-500.0,0.00021917,2]
[338901362,1727041839131,-500.0,0.00021917,2]
[338901363,1727041839141,-500.0,0.00021917,2]
[338901364,1727041839150,-500.0,0.00021917,2]
[338901365,1727041839159,-502.05602483,0.00021917,2]
[338901366,1727041839168,-500.0,0.00021917,2]
[338901367,1727041839177,-500.0,0.00021917,2]
[338901368,1727041839187,-500.0,0.00021917,2]
[338901369,1727041839196,-500.0,0.00021917,2]
[338901370,1727041839205,-500.0,0.00021917,2]
[338901371,1727041839214,-500.0,0.00021917,2]
[338901372,1727041839223,-558.88,0.00021917,2]
[338901373,1727041839233,-528.23,0.00021917,2]
[338901374,1727041839243,-500.0,0.00021917,2]
[338901375,1727041839254,-500.0,0.00021917,2]
[338901376,1727041839263,-500.0,0.00021917,2]
[338901377,1727041839272,-500.0,0.00021917,2]
[338901378,1727041839281,-500.0,0.00021917,2]
[338901379,1727041839291,-441.56878245,0.00021917,2]
[338901380,1727041839301,-500.0,0.00021917,2]
[338901381,1727041839311,-500.0,0.00021917,2]
[338901382,1727041839320,-500.0,0.00021917,2]
[338901383,1727041839329,-500.0,0.00021917,2]
[338901384,1727041839339,-500.0,0.00021917,2]
[338901385,1727041839349,-500.0,0.00021917,2]
[338901386,1727041839358,-200.0,0.00021917,2]
[338901387,1727041839367,-500.0,0.00021917,2]
[338901388,1727041839376,-500.0,0.00021917,2]
[338901389,1727041839385,-766.64,0.00021917,2]
[338901390,1727041839395,-500.0,0.00021917,2]
[338901391,1727041839404,-220.25,0.00021917,2]
[338901392,1727041839413,-500.0,0.00021917,2]
[338901393,1727041839422,-500.0,0.00021917,2]
[338901394,1727041839431,-500.0,0.00021917,2]
[338901395,1727041839440,-500.0,0.00021917,2]
[338901396,1727041839450,-166.666666,0.00021918,2]
[338901397,1727041839459,-184.0,0.000221,2]
[338901399,1727041839468,-501.0,0.000221,2]
[338901400,1727041839477,-530.05833716,0.00022141,3]
[338901408,1727041840000,-103.73166284,0.00022141,3]
[338901409,1727041840010,-735.2,0.00022141,3]
[338901410,1727041840019,-12399.52970476,0.00022151,3]
[338901411,1727041840127,-659.37831777,0.00022151,3]
[338901433,1727041845913,-49211.91390527,0.00022151,3]
[338901434,1727041845923,-500.0,0.00022191,2]
[338901435,1727041845933,-500.0,0.00022191,2]
[338901436,1727041845942,-924.03,0.00022191,2]
[338901437,1727041845951,-500.0,0.00022191,2]
[338901438,1727041845962,-500.0,0.00022191,2]
[338901439,1727041845971,-500.0,0.00022191,2]
[338901440,1727041845980,-500.0,0.00022191,2]
[338901441,1727041845989,-430.28,0.00022191,2]
[338901442,1727041845999,-766.64,0.00022191,2]
[338901443,1727041846008,-507.70425239,0.00022191,2]
[338901444,1727041846018,-500.0,0.00022191,2]
[338901445,1727041846027,-166.666666,0.00022431,2]
[338901446,1727041846036,-500.0,0.00022465,2]
[338901447,1727041846046,-924.03,0.00022465,2]
[338901448,1727041846056,-500.0,0.00022465,2]
[338901449,1727041846066,-766.64,0.00022465,2]
[338901450,1727041846076,-285.03746517,0.00022465,2]
[338901451,1727041846085,-924.03,0.00022739,2]
[338901452,1727041846094,-500.0,0.00022739,2]
[338901453,1727041846105,-766.64,0.00022739,2]
[338901454,1727041846115,-166.666666,0.00022944,2]
[338901455,1727041846126,-156.0,0.00023,2]
[338901456,1727041846135,-924.03,0.00023013,2]
[338901457,1727041846145,-500.0,0.00023013,2]
[338901458,1727041846155,-766.64,0.00023013,2]
[338901459,1727041846165,-500.0,0.00023265,2]
[338901460,1727041846175,-500.0,0.00023265,2]
[338901461,1727041846187,-924.03,0.00023287,2]
[338901462,1727041846198,-500.0,0.00023287,2]
[338901463,1727041846209,-766.64,0.00023287,2]
[338901464,1727041846219,-156.0,0.00023288,2]
[338901465,1727041846230,-500.0,0.00023409,2]
[338901466,1727041846243,-500.0,0.00023409,2]
[338901467,1727041846254,-500.0,0.00023409,2]
[338901468,1727041846264,-500.0,0.00023409,2]
[338901469,1727041846274,-500.0,0.00023409,2]
[338901470,1727041846284,-500.0,0.00023409,2]
[338901471,1727041846294,-166.666666,0.00023456,2]
[338901472,1727041846305,-309.536,0.00023553,2]
[338901473,1727041846315,-3416.769,0.00023553,2]
[338901474,1727041846326,-924.03,0.00023561,2]
[338901475,1727041846335,-500.0,0.00023561,2]
[338901476,1727041846345,-766.64,0.00023561,2]
[338901477,1727041846354,-500.0,0.00023613,2]
[338901478,1727041846364,-500.0,0.00023613,2]
[338901479,1727041846373,-31135.4109639,0.00023795,3]
[338901480,1727041846383,-31135.4109639,0.00023795,3]
[338901481,1727041846393,-924.03,0.00023835,2]
[338901482,1727041846402,-500.0,0.00023835,2]
[338901483,1727041846412,-766.64,0.00023835,2]
[338901484,1727041846421,-593.678913,0.00023848,2]
[338901485,1727041846433,-166.666666,0.00023969,2]
[338901486,1727041846444,-302.54622906,0.00024,2]
[338901487,1727041846454,-924.03,0.00024109,2]
[338901488,1727041846464,-500.0,0.00024109,2]
[338901489,1727041846474,-766.64,0.00024109,2]
[338901490,1727041846486,-593.678913,0.00024146,2]
[338901491,1727041846496,-156.0,0.00024164,2]
[338901492,1727041846505,-302.54622906,0.0002424,2]
[338901493,1727041846516,-924.03,0.00024383,2]
[338901494,1727041846527,-500.0,0.00024383,2]
[338901495,1727041846538,-766.64,0.00024383,2]
[338901496,1727041846550,-4172.97723279,0.00024412,9]
[338901497,1727041846559,-71370.0216,0.00024412,2]
[338901498,1727041846573,-500.0,0.00024412,2]
[338901499,1727041846584,-500.0,0.00024412,2]
[338901500,1727041846594,-500.0,0.00024412,2]
[338901501,1727041846604,-600.0,0.00024412,2]
[338901502,1727041846614,-11898.39994217,0.00024413,9]
[338901503,1727041846624,-3589.4018124,0.00024414,3]
[338901555,1727042404838,500.0,0.0001,2]
[338901556,1727042405223,500.0,0.0001,2]
[338901557,1727042405623,500.0,0.0001,2]
[338901558,1727042407794,500.0,0.0001,2]
[338901559,1727042408391,473.65863584,0.0001,2]
[338901574,1727042733177,-300.0,0.00021916,2]
[338901575,1727042733199,-300.0,0.00021916,2]
[338901576,1727042733221,-500.0,0.00021917,2]
[338901577,1727042733243,-500.0,0.00021917,2]
[338901578,1727042733279,-500.0,0.00021917,2]
[338901579,1727042733302,-500.0,0.00021917,2]
[338901580,1727042733324,-500.0,0.00021917,2]
[338901581,1727042733347,-500.0,0.00021917,2]
[338901582,1727042733368,-500.0,0.00021917,2]
[338901583,1727042733396,-500.0,0.00021917,2]
[338901584,1727042733418,-500.0,0.00021917,2]
[338901585,1727042733440,-500.0,0.00021917,2]
[338901586,1727042733462,-500.0,0.00021917,2]
[338901587,1727042733484,-500.0,0.00021917,2]
[338901588,1727042733505,-500.0,0.00021917,2]
[338901589,1727042733526,-500.0,0.00021917,2]
[338901590,1727042733547,-500.0,0.00021917,2]
[338901591,1727042733568,-337.18790422,0.00021917,2]
[338901592,1727042733589,-500.0,0.00021917,2]
[338901593,1727042733610,-114.35609869,0.00021917,2]
[338901600,1727042744110,-298.52256002,0.00021917,2]
[338901679,1727043032226,-191.752287,0.00020813,2]
[338901681,1727043032241,-104.10675169,0.00020864,2]
[338901683,1727043032252,-1900.9847661,0.00020864,2]
[338901691,1727043032319,-942.81762941,0.00020864,2]
[338901693,1727043032328,-167.999202,0.00020914,2]
[338901695,1727043032337,-167.999202,0.00021005,2]
[338901697,1727043032347,-167.999202,0.00021096,2]
[338901699,1727043032355,-167.999202,0.00021187,2]
[338901701,1727043032365,-167.999202,0.00021277,2]
[338901703,1727043032374,-167.999202,0.00021368,2]
[338901705,1727043032383,-167.999202,0.00021459,2]
[338901707,1727043032393,-167.999202,0.0002155,2]
[338901709,1727043032403,-300.0,0.00021599,2]
[338901711,1727043032413,-300.0,0.00021599,2]
[338901713,1727043032422,-24900.0,0.000216,2]
[338901715,1727043032431,-167.999202,0.00021641,2]
[338901717,1727043032440,-167.999202,0.00021732,2]
[338901719,1727043032449,-2101.01135223,0.00021817,2]
[338901721,1727043032458,-167.999202,0.00021822,2]
[338901723,1727043032468,-167.999202,0.00021913,2]
[338901725,1727043032477,-500.0,0.00021917,2]
[338901727,1727043032487,-539.02,0.00021917,2]
[338901729,1727043032496,-500.0,0.00021917,2]
[338901731,1727043032505,-500.0,0.00021917,2]
[338901733,1727043032514,-500.0,0.00021917,2]
[338901735,1727043032524,-500.0,0.00021917,2]
[338901737,1727043032533,-448.64211509,0.00021917,2]
[338901739,1727043032544,-500.0,0.00021917,2]
[338901741,1727043032553,-257.74,0.00021917,2]
[338901743,1727043032563,-493.80268069,0.00021917,2]
[338901745,1727043032573,-350.87013673,0.00021917,2]
[338901747,1727043032582,-500.0,0.00021917,2]
[338901749,1727043032591,-500.0,0.00021917,2]
[338901751,1727043032601,-500.0,0.00021917,2]
[338901753,1727043032610,-500.0,0.00021917,2]
[338901755,1727043032619,-500.0,0.00021917,2]
[338901757,1727043032629,-568.72,0.00021917,2]
[338901759,1727043032639,-500.0,0.00021917,2]
[338901761,1727043032649,-500.0,0.00021917,2]
[338901763,1727043032658,-500.0,0.00021917,2]
[338901765,1727043032667,-284.99737068,0.00021917,2]
[338901781,1727043038395,-215.00262932,0.00021917,2]
[338901782,1727043038407,-500.0,0.00021917,2]
[338901783,1727043038417,-500.0,0.00021917,2]
[338901784,1727043038426,-473.92803715,0.00021917,2]
[338901785,1727043038838,-26.07196285,0.00021917,2]
[338901786,1727043038848,-500.0,0.00021917,2]
[338901787,1727043038857,-479.65514858,0.00021917,2]
[338901791,1727043038915,-20.34485142,0.00021917,2]
[338901792,1727043038925,-482.7930808,0.00021917,2]
[338901793,1727043038934,-326.62798982,0.00021917,2]
[338901795,1727043038943,-283.24,0.00021917,2]
[338901797,1727043038952,-500.0,0.00021917,2]
[338901799,1727043038961,-200.0,0.00021917,2]
[338901801,1727043038971,-578.58121772,0.00021917,2]
[338901802,1727043038981,-500.0,0.00021917,2]
[338901804,1727043038990,-166.666666,0.00021918,2]
[338901805,1727043038999,-167.999202,0.00022004,2]
[338901806,1727043039010,-500.0,0.0002202,2]
[338901807,1727043039019,-500.0,0.0002202,2]
[338901809,1727043039029,-500.0,0.0002202,2]
[338901810,1727043039038,-788.200824,0.00022021,2]
[338901811,1727043039047,-500.0,0.0002216,2]
[338901813,1727043039056,-500.0,0.0002216,2]
[338901814,1727043039065,-500.0,0.0002216,2]
[338901816,1727043039075,-500.0,0.0002219,2]
[338901817,1727043039084,-539.02,0.00022191,2]
[338901818,1727043039093,-500.0,0.00022191,2]
[338901820,1727043039102,-500.0,0.00022191,2]
[338901821,1727043039111,-500.0,0.00022191,2]
[338901822,1727043039120,-500.0,0.00022191,2]
[338901823,1727043039130,-500.0,0.00022191,2]
[338901824,1727043039141,-500.0,0.00022191,2]
[338901825,1727043039149,-500.0,0.00022191,2]
[338901826,1727043039159,-543.76374942,0.00022191,2]
[338901827,1727043039168,-500.0,0.00022294,2]
[338901828,1727043039177,-539.02,0.00022465,2]
[338901829,1727043039186,-500.0,0.00022465,2]
[338901830,1727043039195,-265.41,0.00022465,2]
[338901831,1727043039204,-500.0,0.00022568,2]
[338901832,1727043039213,-539.02,0.00022739,2]
[338901833,1727043039223,-500.0,0.00022739,2]
[338901834,1727043039232,-500.0,0.00022803,2]
[338901835,1727043039341,-189.01571004,0.00022803,2]
[338901836,1727043039354,-500.0,0.00022803,2]
[338901837,1727043039364,-500.0,0.00022803,2]
[338901838,1727043039373,-500.0,0.00022803,2]
[338901839,1727043039382,-500.0,0.00022803,2]
[338901840,1727043039392,-500.0,0.00022803,2]
[338901841,1727043039401,-456.82131803,0.00022803,2]
[338901842,1727043039414,-46.71518831,0.00022803,2]
[338901843,1727043039423,-500.0,0.00022803,2]
[338901844,1727043039432,-400.18981169,0.00022803,2]
[338901845,1727043039443,-99.81018831,0.00022803,2]
[338901846,1727043039452,-500.0,0.00022803,2]
[338901847,1727043039462,-500.0,0.00022803,2]
[338901848,1727043039472,-507.31716488,0.00022803,2]
[338901849,1727043039482,-503.24389001,0.00022803,2]
[338901850,1727043039493,-500.0,0.00022803,2]
[338901851,1727043039504,-232.73,0.00022803,2]
[338901852,1727043039514,-500.0,0.00022803,2]
[338901853,1727043039525,-500.0,0.00022803,2]
[338901854,1727043039535,-500.0,0.00022842,2]
[338901855,1727043039546,-539.02,0.00023013,2]
[338901856,1727043039556,-500.0,0.00023013,2]
[338901857,1727043039566,-387.75,0.00023077,2]
[338901858,1727043039578,-500.0,0.00023077,2]
[338901860,1727043039588,-373.06150564,0.00023077,2]
[338901861,1727043039599,-500.0,0.00023077,2]
[338901862,1727043039609,-500.0,0.00023077,2]
[338901863,1727043039618,-500.0,0.00023116,2]
[338901865,1727043039628,-539.02,0.00023287,2]
[338901867,1727043039637,-500.0,0.00023287,2]
[338901868,1727043039648,-500.0,0.00023327,2]
[338901869,1727043039658,-500.0,0.00023327,2]
[338901871,1727043039668,-500.0,0.00023328,2]
[338901872,1727043039677,-500.0,0.0002339,2]
[338901874,1727043039688,-420.0,0.00023481,2]
[338901876,1727043039698,-539.02,0.00023561,2]
[338901877,1727043039707,-500.0,0.00023561,2]
[338901878,1727043039716,-500.0,0.00023664,2]
[338901879,1727043039727,-420.0,0.00023759,2]
[338901880,1727043039737,-453.00540024,0.00023804,2]
[338901882,1727043039746,-539.02,0.00023835,2]
[338901883,1727043039755,-500.0,0.00023835,2]
[338901884,1727043039765,-500.0,0.00023938,2]
[338901885,1727043039774,-166.250462,0.00023992,2]
[338901886,1727043039783,-539.02,0.00024109,2]
[338901887,1727043039793,-500.0,0.00024109,2]
[338901888,1727043039806,-500.0,0.00024212,2]
[338901889,1727043039815,-500.0,0.00024257,2]
[338901891,1727043039827,-500.0,0.00024257,2]
[338901893,1727043039837,-539.02,0.00024383,2]
[338901894,1727043039847,-541.8850768,0.00024383,2]
[338901896,1727043039857,-1049.52490522,0.00024411,2]
[338901898,1727043039866,-593.678913,0.00024444,2]
[338901900,1727043039875,-500.0,0.00024486,2]
[338901902,1727043039885,-500.0,0.000246,2]
[338901903,1727043039895,-500.0,0.00024656,2]
[338901905,1727043039905,-500.0,0.00024656,2]
[338901907,1727043039914,-539.02,0.00024657,2]
[338901909,1727043039924,-200.0,0.00024658,15]
[338901911,1727043039935,-380.0,0.00024658,2]
[338901913,1727043039944,-316.68785549,0.00024686,2]
[338901930,1727043040125,-1784.32349672,0.00024686,2]
[338901932,1727043040135,-593.678913,0.00024742,2]
[338901934,1727043040146,-500.0,0.0002476,2]
[338901936,1727043040155,-11218.08304124,0.00024899,3]
[338901940,1727043040212,-11757.68695876,0.00024899,3]
[338901941,1727043040222,-151.0,0.00024909,7]
[338901942,1727043040231,-8135.17122894,0.00024909,3]
[338901958,1727043043256,-302.54622906,0.00024,2]
[338901959,1727043043266,-302.54622906,0.0002424,2]
[338901960,1727043043275,-152.22450896,0.0002448,2]
[338901961,1727043043285,-11742.30416721,0.00024909,3]
[338902143,1727043943141,-266.5941953,0.00021037,2]
[338902144,1727043943165,-2338.37107465,0.000216,2]
[338902153,1727044118319,8949.85669999,0.00014,2]
[338902154,1727044118909,7923.53076144,0.0001,2]
[338902155,1727044120461,181.40355485,0.000129,2]
[338902156,1727044153146,-615.72,0.0001998,3]
[338902157,1727044153167,-300.0,0.00019989,2]
[338902158,1727044153188,-300.0,0.00019989,2]
[338902159,1727044153208,-76703.59246919,0.0001999,2]
[338902162,1727044211996,1781.02718894,0.000199,2]
[338902213,1727044234598,354.3915655,0.00019578,2]
[338902217,1727044238701,-300.0,0.00019989,2]
[338902218,1727044238710,-300.0,0.00019989,2]
[338902219,1727044238720,-500.0,0.00019989,2]
[338902220,1727044238730,-170.5566532,0.00019989,2]
[338902221,1727044238739,-500.0,0.00019989,2]
[338902222,1727044238748,-500.0,0.00019989,2]
[338902223,1727044238758,-500.0,0.00019989,2]
[338902224,1727044238767,-500.0,0.00019989,2]
[338902225,1727044238778,-319.18400001,0.00019989,2]
[338902226,1727044238856,-180.81599999,0.00019989,2]
[338902227,1727044238866,-500.0,0.00019989,2]
[338902229,1727044238876,-500.0,0.00019989,2]
[338902230,1727044238885,-500.0,0.00019989,2]
[338902231,1727044238896,-500.0,0.00019989,2]
[338902232,1727044238906,-350.0,0.00019989,2]
[338902233,1727044238916,-500.0,0.00019989,2]
[338902234,1727044238926,-500.0,0.00019989,2]
[338902235,1727044238936,-12005.18373665,0.0001999,2]
[338902236,1727044238947,-10072.8,0.0001999,2]
[338902237,1727044238959,-287.38831,0.0001999,2]
[338902260,1727044240298,-57508.52789118,0.0001999,2]
[338902261,1727044240308,-21192.91795859,0.0002,2]
[338902262,1727044240317,-166.250462,0.00020384,2]
[338902263,1727044240326,-192.96396055,0.00020563,2]
[338902264,1727044240335,-161.212724,0.00020648,2]
[338902265,1727044240347,-1340.2509214,0.00020663,2]
[338902266,1727044240356,-394.100412,0.00020679,2]
[338902267,1727044240365,-161.212724,0.00020827,2]
[338902268,1727044240374,-24900.0,0.00020859,2]
[338902269,1727044240383,-161.212724,0.00021006,2]
[338902270,1727044240393,-161.212724,0.00021186,2]
[338902271,1727044240402,-161.212724,0.00021365,2]
[338902272,1727044240411,-161.212724,0.00021544,2]
[338902273,1727044240420,-661.62892535,0.000216,2]
[338902274,1727044240430,-3000.0,0.0002161,2]
[338902275,1727044240439,-3000.0,0.0002162,2]
[338902276,1727044240449,-3000.0,0.0002163,2]
[338902277,1727044240458,-5949.19997108,0.0002164,9]
[338902278,1727044240467,-3000.0,0.0002164,2]
[338902279,1727044240477,-3000.0,0.0002165,2]
[338902280,1727044240486,-3000.0,0.0002166,2]
[338902281,1727044240495,-3000.0,0.0002167,2]
[338902282,1727044240505,-3000.0,0.0002168,2]
[338902283,1727044240514,-4733.001978,0.0002169,2]
[338902284,1727044240523,-161.212724,0.00021724,2]
[338902285,1727044240533,-420.0,0.00021766,2]
[338902286,1727044240542,-500.0,0.00021917,2]
[338902287,1727044240551,-500.0,0.00021917,2]
[338902288,1727044240560,-500.0,0.00021917,2]
[338902289,1727044240569,-582.0071638,0.00021917,2]
[338902290,1727044240579,-500.0,0.00021917,2]
[338902291,1727044240591,-500.0,0.00021917,2]
[338902292,1727044240601,-599.22622875,0.00021917,2]
[338902293,1727044240610,-500.0,0.00021917,2]
[338902294,1727044240619,-591.50521109,0.00021917,2]
[338902295,1727044240628,-506.5574349,0.00021917,2]
[338902296,1727044240638,-500.0,0.00021917,2]
[338902297,1727044240648,-420.0,0.00021988,2]
[338902298,1727044240657,-500.0,0.00022191,2]
[338902299,1727044240666,-500.0,0.00022465,2]
[338902300,1727044240675,-500.0,0.00022739,2]
[338902301,1727044240684,-500.0,0.00023013,2]
[338902302,1727044240693,-1781.02718892,0.00023043,2]
[338902303,1727044240704,-500.0,0.00023287,2]
[338902304,1727044240713,-535.14,0.00023409,2]
[338902305,1727044240723,-500.0,0.00023409,2]
[338902306,1727044240732,-500.0,0.00023561,2]
[338902307,1727044240742,-587.0,0.00023701,2]
[338902308,1727044240751,-500.0,0.00023835,2]
[338902309,1727044240760,-500.0,0.00024109,2]
[338902310,1727044240769,-300.0,0.00024187,2]
[338902311,1727044240782,-150.0,0.00024334,2]
[338902312,1727044240792,-500.0,0.00024383,2]
[338902313,1727044240809,-6205.87362092,0.00024415,2]
[338902314,1727044240821,-150.0,0.00024578,2]
[338902315,1727044240831,-233.1,0.00024657,2]
[338902316,1727044240843,-200.0,0.00024658,15]
[338902317,1727044240854,-874.60408768,0.00024759,2]
[338902318,1727044240864,-517.0,0.000249,2]
[338902319,1727044240874,-151.0,0.00024921,7]
[338902320,1727044240883,-500.0,0.00024931,7]
[338902321,1727044240893,-593.678913,0.0002504,2]
[338902322,1727044240902,-500.0,0.00025268,2]
[338902323,1727044240912,-500.0,0.00025599,2]
[338902324,1727044240922,-500.0,0.00025599,2]
[338902325,1727044240931,-500.0,0.00025599,2]
[338902326,1727044240941,-151.0,0.000256,7]
[338902327,1727044240950,-370.7,0.00025628,3]
[338902328,1727044240959,-823.0,0.00025808,2]
[338902329,1727044240969,-29797.9772848,0.00025815,3]
[338902330,1727044240979,-1898.50392724,0.00025815,4]
[338902331,1727044240988,-432.509,0.00025825,2]
[338902332,1727044240997,-2086.48861639,0.00025835,9]
[338902333,1727044241007,-29797.9772848,0.00025835,3]
[338902334,1727044241017,-1898.50392724,0.00025835,4]
[338902335,1727044241026,-151.0,0.00025844,7]
[338902336,1727044241035,-151.0,0.00025844,7]
[338902337,1727044241044,-151.0,0.00025844,7]
[338902338,1727044241053,-151.0,0.00025844,7]
[338902339,1727044241062,-151.0,0.00025844,7]
[338902340,1727044241072,-151.0,0.00025844,7]
[338902341,1727044241081,-151.0,0.00025844,7]
[338902342,1727044241092,-151.0,0.00025844,7]
[338902343,1727044241103,-151.0,0.00025844,7]
[338902344,1727044241113,-151.0,0.00025844,7]
[338902345,1727044241122,-151.0,0.00025844,7]
[338902346,1727044241131,-151.0,0.00025844,7]
[338902347,1727044241141,-500.0,0.00025844,2]
[338902348,1727044241150,-151.0,0.00025845,7]
[338902349,1727044241159,-151.0,0.00025845,7]
[338902350,1727044241169,-151.0,0.00025845,7]
[338902351,1727044241178,-245.611023,0.00025845,7]
[338902352,1727044241187,-245.611023,0.00025845,7]
[338902353,1727044241196,-245.611023,0.00025845,7]
[338902354,1727044241206,-245.611023,0.00025845,7]
[338902355,1727044241215,-151.0,0.00025845,7]
[338902356,1727044241225,-151.0,0.00025845,7]
[338902357,1727044241236,-151.0,0.00025845,7]
[338902358,1727044241246,-151.0,0.00025845,7]
[338902359,1727044241255,-151.0,0.00025845,7]
[338902360,1727044241264,-151.0,0.00025845,7]
[338902361,1727044241274,-151.0,0.00025845,7]
[338902362,1727044241283,-205.730158,0.00025845,7]
[338902363,1727044241293,-205.730158,0.00025845,7]
[338902364,1727044241302,-205.730158,0.00025845,7]
[338902365,1727044241311,-205.730158,0.00025845,7]
[338902366,1727044241320,-151.0,0.00025845,7]
[338902367,1727044241329,-323.20812,0.00025845,7]
[338902368,1727044241338,-323.20812,0.00025845,7]
[338902369,1727044241352,-323.20812,0.00025845,7]
[338902370,1727044241361,-323.20812,0.00025845,7]
[338902371,1727044241370,-151.0,0.00025845,7]
[338902372,1727044241379,-151.0,0.00025845,7]
[338902373,1727044241388,-500.0,0.00025853,2]
[338902374,1727044241397,-500.0,0.00025854,2]
[338902375,1727044241406,-500.0,0.00025854,2]
[338902376,1727044241415,-595.76,0.00025854,2]
[338902377,1727044241425,-500.0,0.00025854,2]
[338902378,1727044241438,-500.0,0.00025854,2]
[338902379,1727044241447,-500.0,0.00025854,2]
[338902380,1727044241456,-500.0,0.00025854,2]
[338902381,1727044241465,-470.0,0.00025854,2]
[338902382,1727044241474,-500.0,0.00025854,2]
[338902383,1727044241484,-151.0,0.00025855,7]
[338902384,1727044241494,-151.0,0.00025855,7]
[338902385,1727044241503,-151.0,0.00025855,7]
[338902386,1727044241512,-151.0,0.00025855,7]
[338902387,1727044241521,-151.0,0.00025855,7]
[338902388,1727044241531,-500.0,0.00025873,2]
[338902389,1727044241541,-500.0,0.00025873,2]
[338902390,1727044241551,-151.0,0.00025874,7]
[338902391,1727044241560,-151.0,0.00025874,7]
[338902392,1727044241570,-151.0,0.00025874,7]
[338902393,1727044241579,-151.0,0.00025874,7]
[338902394,1727044241589,-27329.23084929,0.0002609,4]